fUSD/lending_fUSD_20240828
["ID","MTS","AMOUNT","RATE_DAILY","PERIOD"]
[336477280,1724865803955,-1000.0,0.00028607,30]
[336477281,1724865803983,-1000.0,0.00028607,30]
[336477282,1724865804010,-1000.0,0.00028607,30]
[336477283,1724865804035,-1000.0,0.00028607,30]
[336477284,1724865804060,-1000.0,0.00028607,30]
[336477285,1724865804084,-1000.0,0.00028607,30]
[336477286,1724865804109,-1000.0,0.00028607,30]
[336477287,1724865804133,-1000.0,0.00028607,30]
[336477288,1724865804157,-1000.0,0.00028607,30]
[336477289,1724865804180,-1000.0,0.00028607,30]
[336477290,1724865804206,-150.000001,0.00028607,30]
[336477292,1724865840129,-3744.267181,0.00028,30]
[336477293,1724865840167,-3600.0,0.00029,30]
[336477294,1724865840198,-3600.0,0.0003,31]
[336477295,1724865840226,-3000.0,0.00032876,120]
[336477296,1724865840254,-612.80949377,0.00033698,120]
[336477297,1724865840289,-150.0,0.00038891,120]
[336477298,1724865840540,-220617.99419245,0.00039,60]
[336477299,1724865840567,-1100000.0,0.00039,60]
[336477300,1724865840592,-1548.65605222,0.00039,120]
[336477301,1724865840618,-1000000.0,0.00039,120]
[336477302,1724865840643,-1165.35098213,0.00039,40]
[336477303,1724865840668,-2000.0,0.00039,120]
[336477304,1724865840692,-2000.0,0.00039,120]
[336477305,1724865840716,-4004.72029992,0.00039,30]
[336477306,1724865840741,-4000.0,0.00039,120]
[336477307,1724865840766,-200.0,0.00039045,120]
[336477308,1724865840792,-8318.9685901,0.000391,30]
[336477309,1724865840817,-150.0,0.00039147,120]
[336477310,1724865840842,-150.0,0.00039186,120]
[336477311,1724865840867,-150.0,0.00039257,120]
[336477312,1724865840892,-150.0,0.00039314,120]
[336477313,1724865840917,-150.0,0.00039345,120]
[336477314,1724865840942,-569.61466445,0.000394,30]
[336477315,1724865840969,-150.0,0.00039401,120]
[336477316,1724865840996,-5008.7,0.000395,120]
[336477317,1724865841023,-6093.59,0.00039529,74]
[336477318,1724865841050,-150.0,0.00039582,120]
[336477319,1724865841075,-151.0,0.00039589,120]
[336477320,1724865841101,-200.0,0.00039642,120]
[336477321,1724865841126,-150.0,0.00039714,120]
[336477322,1724865841150,-410.0,0.00039786,60]
[336477323,1724865841176,-2155.704365,0.000398,120]
[336477324,1724865841203,-150.0,0.00039803,120]
[336477325,1724865841228,-800.0,0.00039808,120]
[336477326,1724865841252,-800.0,0.00039808,120]
[336477327,1724865841276,-412.46785777,0.00039886,90]
[336477328,1724865841302,-203.29813374,0.00039898,120]
[336477329,1724865841327,-573.93261206,0.00039898,90]
[336477330,1724865841351,-781.07820372,0.00039898,90]
[336477331,1724865841374,-763.24477931,0.000399,90]
[336477332,1724865841398,-10049.36135605,0.0003995,60]
[336477333,1724865841423,-410.0,0.00039986,90]
[336477334,1724865841448,-150.0,0.00039994,120]
[336477335,1724865841472,-250.0,0.00039999,30]
[336477336,1724865841495,-1000.0,0.00039999,31]
[336477337,1724865841523,-50000.0,0.0004,40]
[336477338,1724865841556,-50000.0,0.0004,30]
[336477339,1724865841583,-711502.89889334,0.0004,90]
[336477340,1724865841606,-369.47,0.0004,120]
[336477341,1724865841631,-565.0,0.0004,120]
[336477342,1724865841656,-2000.0,0.0004,120]
[336477343,1724865841680,-2000.0,0.0004,120]
[336477344,1724865841703,-2000.0,0.0004,120]
[336477345,1724865841727,-2000.0,0.0004,120]
[336477346,1724865841752,-2000.0,0.0004,120]
[336477347,1724865841778,-2000.0,0.0004,120]
[336477348,1724865841802,-2000.0,0.0004,120]
[336477349,1724865841826,-2000.0,0.0004,120]
[336477350,1724865841853,-2000.0,0.0004,120]
[336477351,1724865841877,-1800.0,0.0004,41]
[336477352,1724865841900,-7118.0,0.0004,120]
[336477353,1724865841924,-2000.0,0.0004,120]
[336477354,1724865841947,-4000.0,0.0004,60]
[336477355,1724865841974,-1354.0,0.0004,120]
[336477356,1724865841999,-182.70145042,0.0004,30]
[336477357,1724865842024,-155.85996047,0.0004,30]
[336477358,1724865842047,-314.91094041,0.0004,120]
[336477359,1724865842072,-250.0,0.0004,120]
[336477360,1724865842096,-581.0,0.0004,30]
[336477361,1724865842120,-50000.0,0.0004,120]
[336477362,1724865842144,-5000.0,0.0004,120]
[336477363,1724865842168,-1000000.0,0.0004,90]
[336477364,1724865842192,-247.16858702,0.0004,60]
[336477365,1724865842216,-3998.94795711,0.0004,120]
[336477366,1724865842240,-260000.01,0.0004,120]
[336477367,1724865842264,-14167.73135424,0.0004,120]
[336477368,1724865842289,-5092.09808514,0.0004,120]
[336477369,1724865842313,-4355.83911798,0.0004,30]
[336477370,1724865842337,-101379.31727385,0.0004,120]
[336477371,1724865842361,-5000.0,0.0004,120]
[336477372,1724865842385,-5419.8035712,0.0004,120]
[336477373,1724865842408,-8707.0,0.0004,120]
[336477374,1724865842431,-5538.2644269,0.0004,120]
[336477375,1724865842454,-150.0,0.0004,120]
[336477376,1724865842477,-10475.31218253,0.0004,32]
[336477377,1724865842500,-21337.13791088,0.0004,120]
[336477378,1724865842525,-314.0,0.0004,120]
[336477379,1724865842548,-374.04154579,0.0004,30]
[336477380,1724865842578,-4067.0,0.0004,120]
[336477381,1724865842603,-314985.19533123,0.0004,120]
[336477382,1724865842626,-543.0,0.0004,120]
[336477383,1724865842652,-328.83,0.0004,30]
[336477384,1724865842676,-8502.64952,0.0004,60]
[336477385,1724865842700,-200.0,0.0004,120]
[336477386,1724865842725,-493.34938854,0.0004,120]
[336477387,1724865842750,-281.85567819,0.0004,120]
[336477388,1724865842776,-2000.0,0.0004,120]
[336477389,1724865842800,-1394.36,0.0004,120]
[336477390,1724865842824,-378.0,0.0004,120]
[336477391,1724865842848,-5182.42364933,0.0004,120]
[336477392,1724865842872,-799.1479502,0.0004,120]
[336477393,1724865842895,-2752.40386795,0.0004,120]
[336477394,1724865842919,-4347.75768708,0.0004,120]
[336477395,1724865842941,-953.0,0.0004,120]
[336477396,1724865842968,-13786.0232318,0.0004,120]
[336477397,1724865842993,-343.41068211,0.0004,30]
[336477398,1724865843016,-500.0,0.0004,30]
[336477399,1724865843250,-500.0,0.0004,30]
[336477400,1724865843277,-1050.09696004,0.0004,120]
[336477401,1724865843302,-500.0,0.0004,120]
[336477402,1724865843327,-500.0,0.0004,120]
[336477403,1724865843352,-500.0,0.0004,120]
[336477404,1724865843377,-2000.0,0.0004,60]
[336477405,1724865843402,-445.0,0.0004,30]
[336477406,1724865843427,-2560.37724335,0.0004,30]
[336477407,1724865843451,-5382.43743586,0.0004,120]
[336477408,1724865843476,-162.0,0.0004,120]
[336477409,1724865843501,-286.78,0.0004,120]
[336477410,1724865843527,-477.12749073,0.0004,30]
[336477411,1724865843553,-1960.01815663,0.0004,120]
[336477412,1724865843581,-2937.04232831,0.0004,30]
[336477413,1724865843606,-878455.44137768,0.0004,120]
[336477414,1724865861905,2000.0,0.00024,120]
[336477415,1724865936402,561.88444547,9.5e-05,2]
[336477416,1724865954242,130216.33426949,0.00010399,2]
[336477425,1724865966957,2984.01053598,0.000109,2]
[336477426,1724865989449,175.135361,0.00010934,2]
[336477436,1724866096019,-171.0,0.00010989,2]
[336477437,1724866096040,-150.0,0.00010999,2]
[336477438,1724866096065,-27812.0,0.00011,2]
[336477440,1724866098389,-27993.6964,0.00011,2]
[336477441,1724866104659,-30000.0,0.00011,2]
[336477442,1724866105608,-30000.0,0.00011,2]
[336477443,1724866107297,-30000.0,0.00011,2]
[336477444,1724866110759,-20000.0,0.00011,2]
[336477445,1724866111127,-20000.0,0.00011,2]
[336477446,1724866111406,-10846.82801171,0.00011,2]
[336477447,1724866111687,-9153.17198829,0.00011,2]
[336477449,1724866113612,-20000.0,0.00011,2]
[336477450,1724866114793,-20000.0,0.00011,2]
[336477452,1724866130918,-37800.07301172,0.00011,2]
[336477453,1724866134875,2000.0,0.00022,60]
[336477454,1724866160508,181.722,0.00011,2]
[336477455,1724866231104,157.41,0.00010959,2]
[336477463,1724866231988,-858.16390953,0.000111,2]
[336477464,1724866232054,-1141.83609047,0.000111,2]
[336477465,1724866232063,-150.0,0.000111,2]
[336477466,1724866232073,-2984.01053593,0.00012296,2]
[336477467,1724866232083,-1435.14086053,0.00013691,2]
[336477468,1724866232116,-1548.8696754,0.00013691,2]
[336477469,1724866232126,-805.86294911,0.00015087,2]
[336477470,1724866232137,-453.51,0.00015087,2]
[336477471,1724866232148,-1655.0194653,0.00015087,2]
[336477472,1724866232180,-69.61812152,0.00015087,2]
[336477473,1724866232190,-500.25,0.00016406,2]
[336477474,1724866232200,-2984.01053593,0.00016483,2]
[336477475,1724866232211,-435.57847772,0.00017878,2]
[336477476,1724866232222,-2548.43205821,0.00017878,2]
[336477477,1724866232231,-330.68599329,0.00018,4]
[336477478,1724866232241,-284.59,0.00018,7]
[336477480,1724866232250,-500.25,0.0001867,2]
[336477482,1724866232261,-399.5,0.0001869,2]
[336477484,1724866232270,-200.0,0.00018692,2]
[336477486,1724866232279,-157.70631247,0.0001925,2]
[336477488,1724866232289,-2984.01053593,0.00019274,2]
[336477490,1724866232299,-155.44,0.00019361,2]
[336477492,1724866232308,-1000.0,0.000195,2]
[336477494,1724866232318,-3791.9,0.00019505,2]
[336477496,1724866232328,-276.08,0.00019508,2]
[336477498,1724866232337,-451.05402338,0.00019548,2]
[336477500,1724866232349,-397.57647832,0.00019548,2]
[336477503,1724866232600,-1902.3694983,0.00019548,2]
[336477504,1724866232610,-499.99,0.00019714,2]
[336477505,1724866232620,-14.29558437,0.0001977,2]
[336477506,1724866232632,-199.38711563,0.0001977,2]
[336477507,1724866232641,-1525.6402,0.0001978,2]
[336477508,1724866232651,-169.84,0.00019805,2]
[336477509,1724866232661,-1160.00238867,0.0001987,3]
[336477510,1724866232672,-2317.36112115,0.0001987,3]
[336477511,1724866232687,-9661.27598511,0.0001987,3]
[336477512,1724866232698,-505.95034743,0.0001987,3]
[336477518,1724866238189,-46652.81339131,0.0001987,3]
[336477519,1724866238201,-3513.2,0.0001987,3]
[336477520,1724866238212,-24094.72321773,0.0001987,3]
[336477521,1724866238222,-70814.94492248,0.0001988,2]
[336477522,1724866238234,-3997.69464045,0.0001988,2]
[336477523,1724866238255,-2515.47398675,0.0001988,2]
[336477524,1724866238267,-5050.19077974,0.0001988,2]
[336477525,1724866238279,-1044.62063914,0.0001988,2]
[336477526,1724866238291,-16781.10702351,0.0001988,2]
[336477527,1724866238326,-827.36592781,0.0001988,2]
[336477528,1724866238367,-43591.77779223,0.0001988,2]
[336477529,1724866238377,-231.39,0.00019895,2]
[336477530,1724866238387,-169.84,0.00019904,2]
[336477531,1724866238397,-1000.0,0.00019942,2]
[336477532,1724866238406,-3809.87,0.00020017,2]
[336477533,1724866238418,-167.0,0.0002014,2]
[336477534,1724866238427,-3786.47,0.00020459,2]
[336477536,1724866238438,-1000.0,0.00020655,2]
[336477538,1724866238448,-414.20220777,0.0002067,2]
[336477540,1724866238460,-2569.80832816,0.0002067,2]
[336477541,1724866238469,-3741.51,0.000208,2]
[336477542,1724866238479,-1200.781944,0.000208,2]
[336477543,1724866238488,-2041.05472384,0.0002082,3]
[336477544,1724866238500,-9084.2900005,0.0002082,3]
[336477545,1724866238511,-10850.98688846,0.0002082,3]
[336477548,1724866238758,-168.7496316,0.0002082,2]
[336477549,1724866238769,-2466.65893064,0.0002082,2]
[336477550,1724866238778,-237.8395493,0.0002082,2]
[336477551,1724866238790,-65.29411524,0.0002082,2]
[336477552,1724866238800,-395.6201,0.0002082,2]
[336477553,1724866238809,-207.511,0.00020821,2]
[336477554,1724866238818,-716.32478476,0.00020821,2]
[336477555,1724866238831,-1180.67521524,0.00020821,2]
[336477556,1724866238841,-558.507,0.00020821,2]
[336477557,1724866238851,-764.0,0.00020821,2]
[336477558,1724866238861,-2864.973,0.00020821,2]
[336477559,1724866238871,-547.34478476,0.00020821,2]
[336477560,1724866238887,-534.65521524,0.00020821,2]
[336477561,1724866238897,-248.604,0.00020821,2]
[336477562,1724866238906,-62.76042754,0.00020821,2]
[336477573,1724866240707,-414.19916407,0.00017773,2]
[336477574,1724866240717,-205.23993114,0.00017946,2]
[336477575,1724866240746,-208.95923293,0.00017946,2]
[336477576,1724866240755,-414.19916407,0.00018337,2]
[336477577,1724866240768,-120.37389544,0.00020821,2]
[336477578,1724866240779,-1367.76559331,0.00020821,2]
[336477579,1724866240792,-1115.35694092,0.00020821,2]
[336477580,1724866240818,-28.16804821,0.00020821,2]
[336477581,1724866240829,-1034.57509458,0.00020821,2]
[336477582,1724866240839,-289.0,0.00020821,2]
[336477583,1724866240849,-907.0,0.00020821,2]
[336477584,1724866240861,-1474.47490542,0.00020821,2]
[336477585,1724866240873,-69.52509458,0.00020821,2]
[336477586,1724866240884,-253.03642936,0.00020821,2]
[336477587,1724866240895,-19.24857064,0.00020821,2]
[336477588,1724866240904,-930.0,0.00020821,2]
[336477589,1724866240913,-924.05142936,0.0002083,2]
[336477590,1724866240924,-3504.1443,0.0002083,2]
[336477591,1724866240935,-3868.2,0.0002083,2]
[336477592,1724866240947,-792.75247064,0.0002083,2]
[336477593,1724866240956,-775.54305767,0.0002083,2]
[336477594,1724866240973,-6356.23636126,0.0002083,2]
[336477595,1724866240986,-646.59098107,0.0002083,2]
[336477596,1724866240996,-167.3259838,0.0002083,2]
[336477597,1724866241006,-1397.0818,0.0002083,2]
[336477598,1724866241016,-150.81,0.0002091,2]
[336477599,1724866241026,-240.52638252,0.00020918,2]
[336477600,1724866241037,-500.0,0.00020919,2]
[336477601,1724866241048,-500.0,0.00020919,2]
[336477602,1724866241065,-500.0,0.00020919,2]
[336477603,1724866241074,-500.0,0.00020919,2]
[336477604,1724866241083,-500.0,0.00020919,2]
[336477605,1724866241092,-500.0,0.00020919,2]
[336477606,1724866241103,-388.64101877,0.00020919,2]
[336477607,1724866241112,-500.0,0.00020919,2]
[336477608,1724866241121,-287.14469813,0.00020919,2]
[336477609,1724866241130,-500.0,0.00020919,2]
[336477610,1724866241139,-500.0,0.00020919,2]
[336477611,1724866241147,-500.0,0.00020919,2]
[336477612,1724866241157,-500.0,0.00020919,2]
[336477613,1724866241166,-500.0,0.00020919,2]
[336477614,1724866241175,-500.0,0.00020919,2]
[336477615,1724866241184,-500.0,0.00020919,2]
[336477616,1724866241193,-500.0,0.00020919,2]
[336477617,1724866241202,-420.6543901,0.00020919,2]
[336477618,1724866241211,-196.64648908,0.00020919,2]
[336477619,1724866241221,-670.07834253,0.0002092,3]
[336477620,1724866241232,-449.03088406,0.0002092,3]
[336477621,1724866241244,-685.08301683,0.0002092,3]
[336477622,1724866241254,-418.43404489,0.0002092,3]
[336477623,1724866241347,-335.40115549,0.0002092,3]
[336477624,1724866241358,-10114.15909603,0.0002092,3]
[336477625,1724866241478,-1072.66280005,0.0002092,3]
[336477626,1724866241490,-16963.03151894,0.0002092,3]
[336477627,1724866241502,-4302.89567398,0.0002092,3]
[336477628,1724866241514,-841.62491435,0.0002092,3]
[336477629,1724866241525,-1210.39500007,0.0002092,3]
[336477630,1724866241734,-414.19916407,0.00018591,2]
[336477631,1724866241744,-1251.85949225,0.0002092,3]
[336477635,1724866243201,-1079.31918,0.000111,2]
[336477636,1724866243212,-314.3907,0.000111,2]
[336477637,1724866243223,-606.29012,0.000111,2]
[336477638,1724866243233,-47.02258692,0.00018639,2]
[336477639,1724866243271,-367.17657715,0.00018639,2]
[336477640,1724866243281,-90.28561719,0.00019103,2]
[336477642,1724866243292,-265.6000002,0.00019103,2]
[336477714,1724866243955,-58.31354668,0.00019103,2]
[336477716,1724866243965,-318.80338441,0.00019249,2]
[336477786,1724866246044,-95.39577966,0.00019249,2]
[336477787,1724866246055,-414.19916407,0.00019646,2]
[336477788,1724866246064,-414.19916407,0.00019845,2]
[336477789,1724866246074,-49.45499847,0.00020238,2]
[336477790,1724866246085,-364.7441656,0.00020238,2]
[336477791,1724866246095,-303.56426586,0.00020386,2]
[336477792,1724866246107,-110.63489821,0.00020386,2]
[336477793,1724866246116,-315.40088515,0.00020741,2]
[336477949,1724866248469,-98.79827901,0.00020741,2]
[336477951,1724866248480,-1801.20172099,0.0002092,3]
[336477954,1724866248497,-738.8,0.0002092,3]
[336477956,1724866248509,-25074.33717804,0.0002092,3]
[336477958,1724866248518,-23452.6274772,0.0002092,3]
[336477960,1724866248529,-212440.59280776,0.0002092,3]
[336477962,1724866248541,-2874.31906734,0.0002092,3]
[336477966,1724866248579,-859.71593629,0.0002092,3]
[336477968,1724866248591,-1265.09998576,0.0002092,3]
[336477972,1724866248615,-644.28818466,0.0002092,3]
[336477974,1724866248627,-4421.997546,0.0002092,3]
[336478011,1724866248996,-6271.4,0.0002092,3]
[336478253,1724866251579,1050.0,0.0001,2]
[336479110,1724866597008,1209.11,0.0001096,2]
[336479111,1724866860776,200.0,0.00010905,2]
[336479112,1724867057762,1728.83704463,0.00024,120]
[336479123,1724867428039,2027.0,0.00022,60]
[336479127,1724867432294,-297.41,0.00013699,2]
[336479128,1724867432304,-1436.0,0.00015,2]
[336479129,1724867432313,-1000.0,0.00015042,2]
[336479130,1724867432323,-940.87117892,0.00015506,2]
[336479131,1724867432335,-59.12882108,0.00015506,2]
[336479132,1724867432346,-199.63969501,0.00016712,2]
[336479133,1724867432359,-17.64030499,0.00016712,2]
[336479134,1724867432368,-469.97,0.00017668,2]
[336479135,1724867432377,-1000.0,0.00019263,2]
[336479136,1724867432387,-2751.0,0.00019307,2]
[336479137,1724867432396,-200.0,0.00019348,2]
[336479138,1724867432405,-231.4,0.00019389,2]
[336479139,1724867432415,-254.41,0.00019416,2]
[336479140,1724867432425,-199.75,0.0001948,2]
[336479141,1724867432435,-233.79,0.0001948,2]
[336479142,1724867432444,-105.39570363,0.0001978,2]
[336479143,1724867432461,-397.08384421,0.0001978,2]
[336479144,1724867432477,-283.58465216,0.0001978,2]
[336479145,1724867432487,-166.07,0.00019789,2]
[336479146,1724867432496,-167.0,0.00019869,2]
[336479147,1724867432505,-205.84534784,0.00019931,2]
[336479148,1724867432522,-264.12465216,0.00019931,2]
[336479149,1724867432531,-55.73572983,0.0002,2]
[336479150,1724867432543,-296.145,0.0002,2]
[336479151,1724867432554,-507.53854217,0.0002,2]
[336479152,1724867432564,-167.0,0.00020233,2]
[336479153,1724867432573,-214.85,0.0002037,2]
[336479154,1724867432582,-300.0,0.00020683,2]
[336479155,1724867432592,-166.71,0.000207,2]
[336479156,1724867432603,-150.0,0.00020709,2]
[336479157,1724867432613,-72.45902598,0.0002071,2]
[336479158,1724867432625,-689.26066088,0.0002071,2]
[336479159,1724867432634,-303.1336645,0.0002071,2]
[336479160,1724867432643,-1000.0,0.0002071,2]
[336479161,1724867432653,-7500.0,0.0002071,2]
[336479162,1724867432662,-1000.0,0.0002071,2]
[336479163,1724867432671,-2500.0,0.0002071,2]
[336479164,1724867432682,-8988.697,0.0002071,2]
[336479165,1724867432691,-500.0,0.0002071,2]
[336479166,1724867432700,-18735.3449,0.0002071,2]
[336479167,1724867432710,-166.71,0.00020752,2]
[336479168,1724867432719,-500.0,0.00020759,2]
[336479169,1724867432729,-500.0,0.00020762,2]
[336479170,1724867432738,-2000.0,0.00020763,2]
[336479171,1724867432747,-500.0,0.00020763,2]
[336479172,1724867432757,-500.0,0.00020763,2]
[336479174,1724867432766,-166.71,0.0002078,2]
[336479176,1724867432775,-193.24,0.00020791,2]
[336479177,1724867432785,-193.24,0.00020791,2]
[336479178,1724867432794,-193.24,0.00020791,2]
[336479179,1724867432803,-193.24,0.00020791,2]
[336479180,1724867432812,-193.24,0.00020791,2]
[336479181,1724867432822,-193.24,0.00020791,2]
[336479182,1724867432831,-193.24,0.00020791,2]
[336479183,1724867432840,-193.24,0.00020791,2]
[336479184,1724867432850,-193.24,0.00020791,2]
[336479185,1724867432859,-193.24,0.00020791,2]
[336479186,1724867432868,-193.24,0.00020791,2]
[336479187,1724867432877,-193.24,0.00020791,2]
[336479188,1724867432887,-193.24,0.00020791,2]
[336479189,1724867432896,-193.24,0.00020791,2]
[336479190,1724867432905,-193.24,0.00020791,2]
[336479191,1724867432914,-193.24,0.00020791,2]
[336479192,1724867432924,-193.24,0.00020791,2]
[336479193,1724867432935,-193.24,0.00020791,2]
[336479194,1724867432944,-166.71,0.00020791,2]
[336479195,1724867432953,-166.71,0.00020791,2]
[336479196,1724867432962,-166.71,0.00020791,2]
[336479197,1724867432972,-166.71,0.00020791,2]
[336479198,1724867432981,-166.71,0.00020791,2]
[336479199,1724867432990,-166.71,0.00020791,2]
[336479200,1724867433000,-166.71,0.00020791,2]
[336479201,1724867433009,-166.71,0.00020791,2]
[336479202,1724867433019,-166.71,0.00020791,2]
[336479203,1724867433028,-166.71,0.00020791,2]
[336479204,1724867433038,-193.24,0.000208,2]
[336479205,1724867433047,-193.24,0.000208,2]
[336479206,1724867433056,-193.24,0.000208,2]
[336479207,1724867433066,-193.24,0.000208,2]
[336479208,1724867433077,-193.24,0.000208,2]
[336479209,1724867433087,-193.24,0.000208,2]
[336479210,1724867433096,-193.24,0.000208,2]
[336479211,1724867433105,-193.24,0.000208,2]
[336479212,1724867433115,-193.24,0.000208,2]
[336479213,1724867433124,-193.24,0.000208,2]
[336479214,1724867433133,-193.24,0.000208,2]
[336479215,1724867433142,-193.24,0.000208,2]
[336479216,1724867433154,-193.24,0.000208,2]
[336479217,1724867433163,-193.24,0.000208,2]
[336479218,1724867433173,-193.24,0.000208,2]
[336479219,1724867433184,-193.24,0.000208,2]
[336479220,1724867433193,-193.24,0.000208,2]
[336479221,1724867433202,-193.24,0.000208,2]
[336479222,1724867433211,-193.24,0.000208,2]
[336479223,1724867433222,-193.24,0.000208,2]
[336479224,1724867433232,-193.24,0.000208,2]
[336479225,1724867433241,-193.24,0.000208,2]
[336479226,1724867433250,-115.3464343,0.000208,2]
[336479227,1724867433266,-77.8935657,0.000208,2]
[336479228,1724867433276,-193.24,0.000208,2]
[336479229,1724867433285,-193.24,0.000208,2]
[336479230,1724867433294,-193.24,0.000208,2]
[336479231,1724867433303,-193.24,0.000208,2]
[336479232,1724867433312,-193.24,0.000208,2]
[336479233,1724867433322,-193.24,0.000208,2]
[336479234,1724867433331,-193.24,0.000208,2]
[336479235,1724867433340,-193.24,0.000208,2]
[336479236,1724867433349,-193.24,0.000208,2]
[336479237,1724867433359,-812.9464343,0.000208,3]
[336479238,1724867433383,-1935.23226309,0.000208,3]
[336479239,1724867433394,-102269.64104842,0.000208,3]
[336479240,1724867433406,-784.98522457,0.000208,3]
[336479241,1724867433436,-166.71,0.00020791,2]
[336479242,1724867433446,-14144.43076,0.000208,3]
[336479243,1724867433457,-863.503638,0.000208,3]
[336479245,1724867438318,-166.71,0.00020791,2]
[336479246,1724867438327,-166.71,0.00020791,2]
[336479247,1724867438337,-166.71,0.00020791,2]
[336479248,1724867438346,-166.71,0.00020791,2]
[336479249,1724867438355,-166.71,0.00020791,2]
[336479250,1724867438365,-166.71,0.00020791,2]
[336479251,1724867438375,-166.71,0.00020791,2]
[336479252,1724867438384,-166.71,0.00020791,2]
[336479253,1724867438394,-117.65807564,0.00020791,2]
[336479254,1724867438410,-49.05192436,0.00020791,2]
[336479255,1724867438419,-166.71,0.00020791,2]
[336479256,1724867438430,-166.71,0.00020791,2]
[336479257,1724867438440,-166.71,0.00020791,2]
[336479258,1724867438449,-166.71,0.00020791,2]
[336479259,1724867438460,-166.71,0.00020791,2]
[336479260,1724867438469,-166.71,0.00020791,2]
[336479261,1724867438479,-166.71,0.00020791,2]
[336479262,1724867438488,-2775.38244625,0.000208,3]
[336479263,1724867438501,-1606.73102151,0.000208,3]
[336479265,1724867440408,-306.09729367,0.00020701,2]
[336479266,1724867440422,-753.83647302,0.00020701,2]
[336479267,1724867440498,-526.41,0.00020701,2]
[336479268,1724867440510,-675.74921801,0.00020701,2]
[336479269,1724867440591,-191996.9010153,0.00020701,2]
[336479270,1724867440600,-10061.92681586,0.000208,3]
[336479271,1724867440610,-150.81,0.000208,2]
[336479272,1724867440620,-167.3259838,0.0002081,2]
[336479273,1724867440629,-437617.2542,0.0002081,2]
[336479274,1724867440639,-5719.088,0.0002081,2]
[336479275,1724867440648,-1973.32714452,0.00020818,2]
[336479276,1724867440658,-217.0,0.0002082,2]
[336479277,1724867440668,-1456.34862084,0.0002083,2]
[336479278,1724867440678,-427.60245782,0.00020898,2]
[336479279,1724867440694,-171.43716281,0.00020899,2]
[336479281,1724867440703,-500.0,0.00020899,2]
[336479282,1724867440713,-500.0,0.00020899,2]
[336479283,1724867440722,-404.90517329,0.00020899,2]
[336479284,1724867440731,-19322.1113789,0.000209,3]
[336479285,1724867440740,-270509.559304,0.000209,3]
[336479286,1724867440749,-293912.947001,0.000209,3]
[336479287,1724867440759,-19322.1113789,0.0002091,3]
[336479288,1724867440768,-22608.6882309,0.0002091,3]
[336479289,1724867440777,-19322.1113789,0.0002091,3]
[336479290,1724867440786,-19322.1113789,0.0002091,3]
[336479291,1724867440796,-45217.3764617,0.0002091,3]
[336479293,1724867440806,-34887.38286614,0.0002091,2]
[336479295,1724867440815,-180.25381068,0.0002091,2]
[336479297,1724867440825,-427.60245782,0.00020918,2]
[336479298,1724867440834,-38644.2227577,0.0002092,3]
[336479299,1724867440845,-45217.3764617,0.0002092,3]
[336479300,1724867440855,-150.81,0.0002092,2]
[336479301,1724867440865,-2000.0,0.0002092,2]
[336479302,1724867440875,-200.0,0.0002092,2]
[336479303,1724867440884,-2000.0,0.0002092,2]
[336479304,1724867440894,-918.0,0.0002092,2]
[336479305,1724867440903,-203478.194078,0.0002092,3]
[336479306,1724867440914,-150.81,0.0002092,2]
[336479307,1724867440924,-150.81,0.0002092,2]
[336479308,1724867440935,-3764.03,0.0002092,2]
[336479309,1724867440944,-564.37145588,0.0002092,2]